[Event "Late-Titled-Tuesday-Blitz-June-25-2024"]
[Site "Chess.com"]
[Date "2024.06.25"]
[Round "7"]
[White "merinasian"]
[Black "Gzucaritas"]
[Result "1-0"]
[WhiteElo "2401"]
[BlackElo "2038"]
[TimeControl "180+1"]
[EndTime "15:14:38 PDT"]
[Termination "merinasian won by resignation"]

1. d4 {[%clk 0:02:54.3]} 1... Nf6 {[%clk 0:02:59.7]} 2. Nf3 {[%clk 0:02:55.1]}
2... g6 {[%clk 0:02:55.8]} 3. Bf4 {[%clk 0:02:53.9]} 3... Bg7 {[%clk 0:02:54.7]}
4. e3 {[%clk 0:02:54.5]} 4... O-O {[%clk 0:02:51.8]} 5. h3 {[%clk 0:02:54.8]}
5... d5 {[%clk 0:02:51.8]} 6. Be2 {[%clk 0:02:53.7]} 6... Nbd7 {[%clk
0:02:48.9]} 7. O-O {[%clk 0:02:54.1]} 7... c5 {[%clk 0:02:49.2]} 8. c3 {[%clk
0:02:53.8]} 8... b6 {[%clk 0:02:49.2]} 9. Nbd2 {[%clk 0:02:53.5]} 9... Bb7
{[%clk 0:02:49.6]} 10. a4 {[%clk 0:02:53.4]} 10... a5 {[%clk 0:02:44.2]} 11. Qb1
{[%clk 0:02:39.9]} 11... Ne4 {[%clk 0:02:27.8]} 12. Nxe4 {[%clk 0:02:39.8]}
12... dxe4 {[%clk 0:02:27.7]} 13. Nd2 {[%clk 0:02:40.7]} 13... e5 {[%clk
0:01:58.3]} 14. dxe5 {[%clk 0:02:38.7]} 14... Nxe5 {[%clk 0:01:58.3]} 15. Nxe4
{[%clk 0:02:38.9]} 15... Qd5 {[%clk 0:01:38.5]} 16. f3 {[%clk 0:02:38.7]} 16...
f5 {[%clk 0:01:20.9]} 17. Rd1 {[%clk 0:02:36.3]} 17... Qc6 {[%clk 0:01:17]} 18.
Nd6 {[%clk 0:02:32.4]} 18... h6 {[%clk 0:01:04.4]} 19. Qa2+ {[%clk 0:02:26.9]}
19... Kh7 {[%clk 0:01:02.7]} 20. Bb5 {[%clk 0:02:23.2]} 20... Qc7 {[%clk
0:01:00.7]} 21. Nxb7 {[%clk 0:02:22.4]} 21... Qxb7 {[%clk 0:01:00.7]} 22. Bxe5
{[%clk 0:02:22.7]} 22... Bxe5 {[%clk 0:01:00.2]} 23. Rd7+ {[%clk 0:02:22.6]}
23... Qxd7 {[%clk 0:00:53.2]} 24. Bxd7 {[%clk 0:02:23.5]} 24... Rad8 {[%clk
0:00:49.2]} 25. Rd1 {[%clk 0:02:21.4]} 25... Bg7 {[%clk 0:00:42.5]} 26. Qb3
{[%clk 0:02:19.2]} 26... Rf6 {[%clk 0:00:40.7]} 27. Rd5 {[%clk 0:02:12.2]} 27...
Rf7 {[%clk 0:00:33.6]} 28. Qd1 {[%clk 0:02:09.1]} 28... Re7 {[%clk 0:00:30.8]}
29. Qd3 {[%clk 0:02:00.2]} 29... Rf8 {[%clk 0:00:26.9]} 30. Bb5 {[%clk
0:01:55.7]} 30... h5 {[%clk 0:00:21.7]} 31. Rd7 {[%clk 0:01:55.6]} 31... Re6
{[%clk 0:00:19.2]} 32. Qd5 {[%clk 0:01:53.4]} 32... Rff6 {[%clk 0:00:17.2]} 33.
Qb7 {[%clk 0:01:52.9]} 1-0

[Event "Late-Titled-Tuesday-Blitz-June-25-2024"]
[Site "Chess.com"]
[Date "2024.06.25"]
[Round "7"]
[White "OppieZippy"]
[Black "Kielinkei"]
[Result "1-0"]
[WhiteElo "2366"]
[BlackElo "2494"]
[TimeControl "180+1"]
[EndTime "15:14:45 PDT"]
[Termination "OppieZippy won by resignation"]

1. e4 {[%clk 0:03:00.9]} 1... c5 {[%clk 0:03:00.1]} 2. Nc3 {[%clk 0:02:59.6]}
2... e6 {[%clk 0:02:59.4]} 3. Nf3 {[%clk 0:02:58.9]} 3... d5 {[%clk 0:02:59.9]}
4. exd5 {[%clk 0:02:56.6]} 4... exd5 {[%clk 0:03:00.8]} 5. d4 {[%clk 0:02:55.6]}
5... Nf6 {[%clk 0:02:58.7]} 6. Bb5+ {[%clk 0:02:54.5]} 6... Bd7 {[%clk
0:02:57.6]} 7. Bxd7+ {[%clk 0:02:52.9]} 7... Qxd7 {[%clk 0:02:57.6]} 8. O-O
{[%clk 0:02:52.8]} 8... Be7 {[%clk 0:02:52.4]} 9. dxc5 {[%clk 0:02:51.5]} 9...
O-O {[%clk 0:02:52.4]} 10. Bg5 {[%clk 0:02:51.3]} 10... Nc6 {[%clk 0:02:32.6]}
11. Bxf6 {[%clk 0:02:39.1]} 11... Bxf6 {[%clk 0:02:33.5]} 12. Qxd5 {[%clk
0:02:39.3]} 12... Rad8 {[%clk 0:02:31.2]} 13. Qc4 {[%clk 0:02:31.4]} 13... Rfe8
{[%clk 0:02:26.1]} 14. Rad1 {[%clk 0:02:22.4]} 14... Qc8 {[%clk 0:02:26]} 15. b4
{[%clk 0:02:15.8]} 15... Qf5 {[%clk 0:02:19.5]} 16. Nd5 {[%clk 0:02:10.8]} 16...
g6 {[%clk 0:02:11.2]} 17. a3 {[%clk 0:02:07.3]} 17... Bg7 {[%clk 0:02:10.1]} 18.
h3 {[%clk 0:02:05]} 18... Ne5 {[%clk 0:02:08.3]} 19. Nxe5 {[%clk 0:02:03.8]}
19... Qxe5 {[%clk 0:02:09.2]} 20. Ne3 {[%clk 0:01:59.5]} 20... h5 {[%clk
0:02:05.3]} 21. Rfe1 {[%clk 0:01:55.1]} 21... Bh6 {[%clk 0:01:58.9]} 22. Rd3
{[%clk 0:01:47]} 22... Rxd3 {[%clk 0:01:52.4]} 23. Qxd3 {[%clk 0:01:47.9]} 23...
Re7 {[%clk 0:01:47]} 24. c3 {[%clk 0:01:43.7]} 24... h4 {[%clk 0:01:43.7]} 25.
Nc2 {[%clk 0:01:41.6]} 25... Qc7 {[%clk 0:01:36.9]} 26. Ne3 {[%clk 0:01:40]}
26... Bf4 {[%clk 0:01:31.1]} 27. Re2 {[%clk 0:01:33.8]} 27... Qe5 {[%clk
0:01:29.5]} 28. Qd4 {[%clk 0:01:30]} 28... Qc7 {[%clk 0:01:25.8]} 29. Kf1 {[%clk
0:01:20.6]} 29... Rd7 {[%clk 0:01:23.8]} 30. Nd5 {[%clk 0:01:19.1]} 30... Qd8
{[%clk 0:00:55.6]} 31. Nf6+ {[%clk 0:01:11.9]} 31... Kf8 {[%clk 0:00:51.8]} 32.
Nxd7+ {[%clk 0:01:09.2]} 32... Kg8 {[%clk 0:00:50.8]} 33. Nf6+ {[%clk
0:01:08.7]} 1-0

[Event "Late-Titled-Tuesday-Blitz-June-25-2024"]
[Site "Chess.com"]
[Date "2024.06.25"]
[Round "7"]
[White "JackRodgers"]
[Black "MuhittinBuker"]
[Result "1-0"]
[WhiteElo "2521"]
[BlackElo "2253"]
[TimeControl "180+1"]
[EndTime "15:14:51 PDT"]
[Termination "JackRodgers won by resignation"]

1. d4 {[%clk 0:03:00.9]} 1... Nf6 {[%clk 0:02:59.1]} 2. Bg5 {[%clk 0:03:00.6]}
2... Ne4 {[%clk 0:02:58.3]} 3. h4 {[%clk 0:03:00.1]} 3... Nxg5 {[%clk
0:02:57.5]} 4. hxg5 {[%clk 0:03:00.9]} 4... g6 {[%clk 0:02:57.8]} 5. e3 {[%clk
0:03:00.7]} 5... Bg7 {[%clk 0:02:58.3]} 6. Nf3 {[%clk 0:02:59.9]} 6... c5 {[%clk
0:02:58.3]} 7. c3 {[%clk 0:03:00]} 7... Nc6 {[%clk 0:02:57.8]} 8. Nbd2 {[%clk
0:02:58.8]} 8... d5 {[%clk 0:02:55.7]} 9. dxc5 {[%clk 0:02:58.3]} 9... e5 {[%clk
0:02:50.8]} 10. e4 {[%clk 0:02:57.4]} 10... d4 {[%clk 0:02:49.7]} 11. Nc4 {[%clk
0:02:51.5]} 11... Be6 {[%clk 0:02:44.1]} 12. Nd6+ {[%clk 0:02:51.1]} 12... Kf8
{[%clk 0:02:43.9]} 13. cxd4 {[%clk 0:02:44.4]} 13... exd4 {[%clk 0:02:43.4]} 14.
Bd3 {[%clk 0:02:38.3]} 14... Qa5+ {[%clk 0:02:40.7]} 15. Qd2 {[%clk 0:02:34.4]}
15... Qxc5 {[%clk 0:02:40.7]} 16. Nxb7 {[%clk 0:02:30.5]} 16... Qe7 {[%clk
0:02:36]} 17. Na5 {[%clk 0:02:29]} 17... Nxa5 {[%clk 0:02:28.6]} 18. Qxa5 {[%clk
0:02:29.9]} 18... Bg4 {[%clk 0:02:27.3]} 19. Nd2 {[%clk 0:02:20]} 19... h6
{[%clk 0:02:16.9]} 20. f3 {[%clk 0:02:14.2]} 20... Be6 {[%clk 0:02:13.6]} 21.
gxh6 {[%clk 0:02:11.2]} 21... Rxh6 {[%clk 0:02:13]} 22. Rxh6 {[%clk 0:02:10.8]}
22... Bxh6 {[%clk 0:02:13.1]} 23. Qa3 {[%clk 0:01:43.9]} 23... Qxa3 {[%clk
0:02:08.2]} 24. bxa3 {[%clk 0:01:44.8]} 24... Rb8 {[%clk 0:02:01]} 25. Rb1
{[%clk 0:01:43.4]} 25... Rxb1+ {[%clk 0:01:58.7]} 26. Bxb1 {[%clk 0:01:44.3]}
26... Ke7 {[%clk 0:01:51.4]} 27. Nb3 {[%clk 0:01:43.3]} 27... Be3 {[%clk
0:01:46.7]} 28. Ke2 {[%clk 0:01:43.1]} 28... Bc4+ {[%clk 0:01:46.1]} 29. Bd3
{[%clk 0:01:43]} 29... Be6 {[%clk 0:01:28.1]} 30. Bb5 {[%clk 0:01:31.8]} 30...
Bg1 {[%clk 0:01:20.2]} 31. Kd3 {[%clk 0:01:30.4]} 31... Bxb3 {[%clk 0:01:15.8]}
32. axb3 {[%clk 0:01:31.3]} 32... g5 {[%clk 0:01:12.5]} 33. b4 {[%clk
0:01:29.8]} 33... Kd6 {[%clk 0:01:12.1]} 34. a4 {[%clk 0:01:22]} 34... Ke5
{[%clk 0:01:09.6]} 35. Be8 {[%clk 0:01:18.6]} 35... f6 {[%clk 0:01:07.1]} 36. a5
{[%clk 0:01:15.8]} 36... Bf2 {[%clk 0:01:07.1]} 37. b5 {[%clk 0:01:14.9]} 37...
Be1 {[%clk 0:01:07.2]} 38. b6 {[%clk 0:01:07.6]} 38... axb6 {[%clk 0:00:59.6]}
39. a6 {[%clk 0:01:07.8]} 1-0

[Event "Late-Titled-Tuesday-Blitz-June-25-2024"]
[Site "Chess.com"]
[Date "2024.06.25"]
[Round "7"]
[White "DenLaz"]
[Black "ChristopherYoo"]
[Result "1-0"]
[WhiteElo "3141"]
[BlackElo "3041"]
[TimeControl "180+1"]
[EndTime "15:15:00 PDT"]
[Termination "DenLaz won by resignation"]

1. d4 {[%clk 0:03:00.9]} 1... Nf6 {[%clk 0:02:59.5]} 2. c4 {[%clk 0:03:01.4]}
2... e6 {[%clk 0:02:58.5]} 3. Nf3 {[%clk 0:03:02]} 3... d5 {[%clk 0:02:55.1]} 4.
g3 {[%clk 0:03:02.6]} 4... dxc4 {[%clk 0:02:49.9]} 5. Bg2 {[%clk 0:03:03]} 5...
a6 {[%clk 0:02:46.1]} 6. O-O {[%clk 0:03:01.4]} 6... Nc6 {[%clk 0:02:46.2]} 7.
Bg5 {[%clk 0:03:01.4]} 7... Be7 {[%clk 0:02:43.7]} 8. e3 {[%clk 0:03:01.3]} 8...
Nd5 {[%clk 0:02:27.3]} 9. Bxe7 {[%clk 0:02:58.9]} 9... Qxe7 {[%clk 0:02:28.2]}
10. Qc1 {[%clk 0:02:53.7]} 10... Nb6 {[%clk 0:02:07.7]} 11. Nbd2 {[%clk
0:02:51.1]} 11... e5 {[%clk 0:02:07.1]} 12. Nxc4 {[%clk 0:02:40.3]} 12... exd4
{[%clk 0:02:02.1]} 13. Nxb6 {[%clk 0:02:35.9]} 13... cxb6 {[%clk 0:02:01.8]} 14.
exd4 {[%clk 0:02:30.9]} 14... O-O {[%clk 0:02:01.5]} 15. d5 {[%clk 0:02:24.3]}
15... Ne5 {[%clk 0:01:59.5]} 16. Qf4 {[%clk 0:02:15.2]} 16... Ng6 {[%clk
0:01:55.4]} 17. Qd4 {[%clk 0:02:12.1]} 17... Qd6 {[%clk 0:01:54.8]} 18. Nd2
{[%clk 0:02:12.2]} 18... b5 {[%clk 0:01:21.1]} 19. Ne4 {[%clk 0:02:10.8]} 19...
Qd8 {[%clk 0:01:19.3]} 20. d6 {[%clk 0:02:07.3]} 20... Bf5 {[%clk 0:01:07.2]}
21. Nc5 {[%clk 0:01:56.7]} 21... b6 {[%clk 0:01:01.4]} 22. Nb7 {[%clk
0:01:52.9]} 22... Qf6 {[%clk 0:00:58.3]} 23. Qxf6 {[%clk 0:01:40.3]} 23... gxf6
{[%clk 0:00:57.6]} 24. Rac1 {[%clk 0:01:40.9]} 24... Ne5 {[%clk 0:00:45.5]} 25.
Rc7 {[%clk 0:01:40.5]} 25... Rae8 {[%clk 0:00:29.8]} 26. d7 {[%clk 0:01:28.2]}
26... Nxd7 {[%clk 0:00:23.1]} 27. Nd6 {[%clk 0:01:28]} 27... Bg4 {[%clk
0:00:13.6]} 28. h3 {[%clk 0:01:17.6]} 28... Be6 {[%clk 0:00:09.6]} 29. Nxe8
{[%clk 0:01:17.4]} 29... Rxe8 {[%clk 0:00:10.5]} 30. Bc6 {[%clk 0:01:17.4]} 1-0

[Event "Late-Titled-Tuesday-Blitz-June-25-2024"]
[Site "Chess.com"]
[Date "2024.06.25"]
[Round "7"]
[White "Orest_Vovk"]
[Black "rionelG"]
[Result "0-1"]
[WhiteElo "2544"]
[BlackElo "2404"]
[TimeControl "180+1"]
[EndTime "15:15:01 PDT"]
[Termination "rionelG won by resignation"]

1. e4 {[%clk 0:02:56.5]} 1... c5 {[%clk 0:02:59.6]} 2. Be2 {[%clk 0:02:55.7]}
2... d6 {[%clk 0:02:57.2]} 3. f4 {[%clk 0:02:54.4]} 3... Nc6 {[%clk 0:02:55.1]}
4. Nf3 {[%clk 0:02:54.5]} 4... Nf6 {[%clk 0:02:54.7]} 5. d3 {[%clk 0:02:53.2]}
5... g6 {[%clk 0:02:54.2]} 6. O-O {[%clk 0:02:53.3]} 6... Bg7 {[%clk 0:02:54.5]}
7. c3 {[%clk 0:02:53.2]} 7... O-O {[%clk 0:02:53.8]} 8. Nbd2 {[%clk 0:02:51.7]}
8... Rb8 {[%clk 0:02:50.2]} 9. a4 {[%clk 0:02:51.2]} 9... a6 {[%clk 0:02:49.9]}
10. Nc4 {[%clk 0:02:50.4]} 10... b5 {[%clk 0:02:49.3]} 11. axb5 {[%clk
0:02:50.6]} 11... axb5 {[%clk 0:02:50.2]} 12. Ne3 {[%clk 0:02:50.7]} 12... b4
{[%clk 0:02:48.9]} 13. Bd2 {[%clk 0:02:47.7]} 13... bxc3 {[%clk 0:02:40.3]} 14.
bxc3 {[%clk 0:02:47.5]} 14... Ng4 {[%clk 0:02:35.7]} 15. Nxg4 {[%clk 0:02:46.9]}
15... Bxg4 {[%clk 0:02:34.7]} 16. h3 {[%clk 0:02:46.6]} 16... Bxf3 {[%clk
0:02:29.1]} 17. Bxf3 {[%clk 0:02:46.4]} 17... Rb2 {[%clk 0:02:28.2]} 18. Qc1
{[%clk 0:02:40.7]} 18... Qb6 {[%clk 0:02:26.3]} 19. e5 {[%clk 0:02:36.2]} 19...
Rb8 {[%clk 0:02:24.9]} 20. e6 {[%clk 0:02:15]} 20... f5 {[%clk 0:02:20.8]} 21.
g4 {[%clk 0:01:56.5]} 21... Na5 {[%clk 0:02:04.3]} 22. Bd1 {[%clk 0:01:24.7]}
22... Rb5 {[%clk 0:01:33.7]} 23. c4 {[%clk 0:01:07]} 23... Nb3 {[%clk
0:00:58.8]} 24. Bxb3 {[%clk 0:01:00.9]} 24... Rxb3 {[%clk 0:00:59]} 25. Ra3
{[%clk 0:00:51.2]} 25... Bb2 {[%clk 0:00:40.9]} 26. Rxb3 {[%clk 0:00:51.1]}
26... Qxb3 {[%clk 0:00:41.8]} 27. Qb1 {[%clk 0:00:51.7]} 27... Bd4+ {[%clk
0:00:41.8]} 28. Kg2 {[%clk 0:00:43.8]} 28... Qxb1 {[%clk 0:00:41.8]} 0-1

[Event "Late-Titled-Tuesday-Blitz-June-25-2024"]
[Site "Chess.com"]
[Date "2024.06.25"]
[Round "7"]
[White "lamomiajunior"]
[Black "TigrVShlyape"]
[Result "1-0"]
[WhiteElo "2776"]
[BlackElo "2979"]
[TimeControl "180+1"]
[EndTime "15:15:03 PDT"]
[Termination "lamomiajunior won on time"]

1. d4 {[%clk 0:03:00.9]} 1... d5 {[%clk 0:02:59.5]} 2. Nc3 {[%clk 0:03:01.2]}
2... Nf6 {[%clk 0:02:58.5]} 3. Bf4 {[%clk 0:03:00.9]} 3... c6 {[%clk 0:02:56.5]}
4. e3 {[%clk 0:02:59.6]} 4... Bf5 {[%clk 0:02:56.2]} 5. f3 {[%clk 0:02:59.9]}
5... h5 {[%clk 0:02:53.3]} 6. Bd3 {[%clk 0:02:59.7]} 6... Bxd3 {[%clk
0:02:50.8]} 7. Qxd3 {[%clk 0:03:00.6]} 7... e6 {[%clk 0:02:49.9]} 8. Nge2 {[%clk
0:03:01.1]} 8... Nbd7 {[%clk 0:02:45.8]} 9. e4 {[%clk 0:03:01.2]} 9... h4 {[%clk
0:02:34.6]} 10. O-O-O {[%clk 0:02:58.9]} 10... Be7 {[%clk 0:02:25.3]} 11. g3
{[%clk 0:02:59.1]} 11... a5 {[%clk 0:02:15.2]} 12. Kb1 {[%clk 0:02:54.1]} 12...
Qb6 {[%clk 0:02:14.5]} 13. g4 {[%clk 0:02:44.3]} 13... a4 {[%clk 0:02:11.6]} 14.
g5 {[%clk 0:02:36.6]} 14... Nh5 {[%clk 0:02:05]} 15. Bc1 {[%clk 0:02:36.2]}
15... Qa6 {[%clk 0:02:01.4]} 16. Qe3 {[%clk 0:02:31.1]} 16... Nb6 {[%clk
0:01:58.3]} 17. g6 {[%clk 0:02:20.1]} 17... Nc4 {[%clk 0:01:49.3]} 18. gxf7+
{[%clk 0:02:20.2]} 18... Kxf7 {[%clk 0:01:49.2]} 19. Qd3 {[%clk 0:02:19.1]}
19... Nd6 {[%clk 0:01:36.1]} 20. Rhg1 {[%clk 0:02:12.3]} 20... Qxd3 {[%clk
0:01:35.2]} 21. cxd3 {[%clk 0:02:13.2]} 21... b5 {[%clk 0:01:16.5]} 22. Nf4
{[%clk 0:02:13.6]} 22... Nxf4 {[%clk 0:01:08.5]} 23. Bxf4 {[%clk 0:02:14.5]}
23... b4 {[%clk 0:01:02.9]} 24. Ne2 {[%clk 0:02:14.5]} 24... Nb5 {[%clk
0:01:02.5]} 25. Rg4 {[%clk 0:02:05.4]} 25... Rh7 {[%clk 0:00:58.8]} 26. Rdg1
{[%clk 0:02:05.3]} 26... c5 {[%clk 0:00:51.1]} 27. Be5 {[%clk 0:02:03.6]} 27...
Rg8 {[%clk 0:00:45.4]} 28. dxc5 {[%clk 0:02:03.5]} 28... Bxc5 {[%clk 0:00:44.2]}
29. d4 {[%clk 0:02:04.1]} 29... Bd6 {[%clk 0:00:37.3]} 30. exd5 {[%clk
0:02:00.9]} 30... exd5 {[%clk 0:00:32.6]} 31. Nf4 {[%clk 0:01:55.2]} 31... Bxe5
{[%clk 0:00:11.2]} 32. dxe5 {[%clk 0:01:56.1]} 32... Re8 {[%clk 0:00:11]} 33.
Nd3 {[%clk 0:01:56.5]} 33... d4 {[%clk 0:00:09.4]} 34. f4 {[%clk 0:01:51.6]}
34... a3 {[%clk 0:00:07.7]} 35. f5 {[%clk 0:01:50.6]} 35... axb2 {[%clk
0:00:07]} 36. Kxb2 {[%clk 0:01:50.2]} 36... Nc3 {[%clk 0:00:06.7]} 37. Rg6
{[%clk 0:01:47.5]} 37... Ra8 {[%clk 0:00:03.7]} 38. Nxb4 {[%clk 0:01:45.5]}
38... Rb8 {[%clk 0:00:02.6]} 39. a3 {[%clk 0:01:46.2]} 39... Ne4 {[%clk
0:00:01.5]} 40. Rc6 {[%clk 0:01:42.5]} 1-0

[Event "Late-Titled-Tuesday-Blitz-June-25-2024"]
[Site "Chess.com"]
[Date "2024.06.25"]
[Round "7"]
[White "Winner_7777"]
[Black "Cosi43"]
[Result "0-1"]
[WhiteElo "2519"]
[BlackElo "2701"]
[TimeControl "180+1"]
[EndTime "15:15:04 PDT"]
[Termination "Cosi43 won by resignation"]

1. d4 {[%clk 0:03:00.9]} 1... d5 {[%clk 0:02:51.4]} 2. c4 {[%clk 0:03:00.7]}
2... Nc6 {[%clk 0:02:51.5]} 3. Nf3 {[%clk 0:02:57.9]} 3... Bg4 {[%clk
0:02:51.1]} 4. cxd5 {[%clk 0:02:57.5]} 4... Bxf3 {[%clk 0:02:51.4]} 5. gxf3
{[%clk 0:02:58.3]} 5... Qxd5 {[%clk 0:02:51.2]} 6. e3 {[%clk 0:02:56.9]} 6... e5
{[%clk 0:02:51.5]} 7. Nc3 {[%clk 0:02:56.3]} 7... Bb4 {[%clk 0:02:52]} 8. Bd2
{[%clk 0:02:57]} 8... Bxc3 {[%clk 0:02:51.9]} 9. bxc3 {[%clk 0:02:57.9]} 9...
Nge7 {[%clk 0:02:49.7]} 10. Rb1 {[%clk 0:02:42.5]} 10... O-O {[%clk 0:02:40.2]}
11. c4 {[%clk 0:02:23.8]} 11... Qd7 {[%clk 0:02:27.4]} 12. d5 {[%clk 0:02:21.1]}
12... Nd8 {[%clk 0:02:27.7]} 13. h4 {[%clk 0:01:44.1]} 13... b6 {[%clk
0:02:17.5]} 14. e4 {[%clk 0:01:31.4]} 14... Nb7 {[%clk 0:02:13.1]} 15. Bh3
{[%clk 0:01:27.5]} 15... Qd6 {[%clk 0:02:10.1]} 16. h5 {[%clk 0:01:25.4]} 16...
h6 {[%clk 0:02:07.8]} 17. f4 {[%clk 0:01:16.9]} 17... exf4 {[%clk 0:01:59.6]}
18. Qg4 {[%clk 0:01:15.3]} 18... Nc5 {[%clk 0:01:48.1]} 19. Bxf4 {[%clk
0:01:08.8]} 19... Qxf4 {[%clk 0:01:46.2]} 20. Qxf4 {[%clk 0:00:51.8]} 20... Nd3+
{[%clk 0:01:46]} 21. Kd2 {[%clk 0:00:52.5]} 21... Nxf4 {[%clk 0:01:46.9]} 22.
Bg4 {[%clk 0:00:52.8]} 22... f5 {[%clk 0:01:32.6]} 23. Bf3 {[%clk 0:00:29.2]}
23... fxe4 {[%clk 0:01:25.1]} 24. Bxe4 {[%clk 0:00:30.1]} 24... Nf5 {[%clk
0:01:13.1]} 25. Rhg1 {[%clk 0:00:18.8]} 25... Rae8 {[%clk 0:01:10.6]} 26. f3
{[%clk 0:00:18.2]} 26... Nd6 {[%clk 0:01:04.1]} 0-1

[Event "Late-Titled-Tuesday-Blitz-June-25-2024"]
[Site "Chess.com"]
[Date "2024.06.25"]
[Round "7"]
[White "mishanick"]
[Black "Chaubunagungamaug1"]
[Result "1-0"]
[WhiteElo "3145"]
[BlackElo "2584"]
[TimeControl "180+1"]
[EndTime "15:15:07 PDT"]
[Termination "mishanick won by resignation"]

1. d4 {[%clk 0:03:00.9]} 1... d5 {[%clk 0:02:59.1]} 2. c4 {[%clk 0:03:01]} 2...
c6 {[%clk 0:02:59.5]} 3. Nc3 {[%clk 0:03:01.4]} 3... Nf6 {[%clk 0:02:59.9]} 4.
Nf3 {[%clk 0:03:02]} 4... e6 {[%clk 0:03:00.3]} 5. e3 {[%clk 0:03:01.2]} 5...
Nbd7 {[%clk 0:02:59.6]} 6. Qc2 {[%clk 0:03:01.7]} 6... Bd6 {[%clk 0:02:59.6]} 7.
Be2 {[%clk 0:03:01.8]} 7... O-O {[%clk 0:02:59.2]} 8. O-O {[%clk 0:03:02.4]}
8... b6 {[%clk 0:02:55.1]} 9. e4 {[%clk 0:03:01.3]} 9... dxe4 {[%clk 0:02:54.4]}
10. Nxe4 {[%clk 0:03:02.2]} 10... Nxe4 {[%clk 0:02:54.8]} 11. Qxe4 {[%clk
0:03:02.4]} 11... Bb7 {[%clk 0:02:53.4]} 12. Rd1 {[%clk 0:02:58]} 12... Qe7
{[%clk 0:02:50.5]} 13. Bf4 {[%clk 0:02:57.6]} 13... Nf6 {[%clk 0:02:29.8]} 14.
Bxd6 {[%clk 0:02:56]} 14... Qxd6 {[%clk 0:02:30.7]} 15. Qe5 {[%clk 0:02:56.2]}
15... Qb4 {[%clk 0:02:15]} 16. b3 {[%clk 0:02:54.3]} 16... Rfd8 {[%clk
0:02:11.2]} 17. h3 {[%clk 0:02:52.1]} 17... Rac8 {[%clk 0:02:04.8]} 18. Qe3
{[%clk 0:02:51.6]} 18... h6 {[%clk 0:02:04.2]} 19. Ne5 {[%clk 0:02:51.7]} 19...
Qe7 {[%clk 0:01:58.7]} 20. Bf3 {[%clk 0:02:51.4]} 20... c5 {[%clk 0:01:53.8]}
21. dxc5 {[%clk 0:02:50.2]} 21... Bxf3 {[%clk 0:01:51.6]} 22. Qxf3 {[%clk
0:02:51.1]} 22... Qxc5 {[%clk 0:01:50.7]} 23. Qe2 {[%clk 0:02:40.7]} 23... Qc7
{[%clk 0:01:38.1]} 24. g3 {[%clk 0:02:37.1]} 24... Rxd1+ {[%clk 0:01:33.2]} 25.
Rxd1 {[%clk 0:02:38]} 25... Rd8 {[%clk 0:01:33.8]} 26. Rxd8+ {[%clk 0:02:35.4]}
26... Qxd8 {[%clk 0:01:34.7]} 27. Qf3 {[%clk 0:02:35.8]} 27... Qb8 {[%clk
0:01:24.2]} 28. Nc6 {[%clk 0:02:35.4]} 28... Qc7 {[%clk 0:01:22.7]} 29. Kg2
{[%clk 0:02:35.8]} 29... Nd7 {[%clk 0:01:16]} 30. Nd4 {[%clk 0:02:34.1]} 30...
Nc5 {[%clk 0:01:12.5]} 31. Qa8+ {[%clk 0:02:31.9]} 31... Kh7 {[%clk 0:01:12]}
32. Nb5 {[%clk 0:02:32.6]} 32... Qe5 {[%clk 0:01:05.2]} 33. Qf3 {[%clk
0:02:28.1]} 33... a6 {[%clk 0:01:02]} 34. Nc3 {[%clk 0:02:28.3]} 34... Qd6
{[%clk 0:00:58.3]} 35. Qxf7 {[%clk 0:02:25.2]} 35... Qd2 {[%clk 0:00:54.6]} 36.
Qf3 {[%clk 0:02:15.5]} 36... Nd3 {[%clk 0:00:53.6]} 37. Qe4+ {[%clk 0:02:14.1]}
37... Kh8 {[%clk 0:00:52.8]} 38. Ne2 {[%clk 0:02:14.7]} 38... Nc5 {[%clk
0:00:39.3]} 39. Qf3 {[%clk 0:01:52.1]} 39... Nd3 {[%clk 0:00:34.1]} 40. Qa8+
{[%clk 0:01:47.6]} 40... Kh7 {[%clk 0:00:34.1]} 41. Qe4+ {[%clk 0:01:48.1]}
41... Kh8 {[%clk 0:00:32.7]} 42. Qxe6 {[%clk 0:01:47.6]} 42... Nc5 {[%clk
0:00:22.4]} 43. Qc8+ {[%clk 0:01:40.7]} 43... Kh7 {[%clk 0:00:21.6]} 44. Qf5+
{[%clk 0:01:41.3]} 44... Kh8 {[%clk 0:00:22]} 45. Nf4 {[%clk 0:01:41.9]} 45...
Qxa2 {[%clk 0:00:11.2]} 46. Ng6+ {[%clk 0:01:42.3]} 46... Kg8 {[%clk 0:00:11.2]}
47. Ne7+ {[%clk 0:01:42.9]} 47... Kh8 {[%clk 0:00:11.3]} 48. Qf8+ {[%clk
0:01:43.6]} 1-0

[Event "Late-Titled-Tuesday-Blitz-June-25-2024"]
[Site "Chess.com"]
[Date "2024.06.25"]
[Round "7"]
[White "SebbyMeister"]
[Black "Onthequiet"]
[Result "1-0"]
[WhiteElo "2256"]
[BlackElo "2302"]
[TimeControl "180+1"]
[EndTime "15:15:07 PDT"]
[Termination "SebbyMeister won by resignation"]

1. e4 {[%clk 0:02:57.8]} 1... c6 {[%clk 0:02:59]} 2. d4 {[%clk 0:02:57.5]} 2...
d5 {[%clk 0:02:59.4]} 3. e5 {[%clk 0:02:56.1]} 3... Bf5 {[%clk 0:02:59.2]} 4.
Ne2 {[%clk 0:02:55.7]} 4... e6 {[%clk 0:02:58.1]} 5. Ng3 {[%clk 0:02:52.4]} 5...
Ne7 {[%clk 0:02:58.4]} 6. Nxf5 {[%clk 0:02:43.1]} 6... Nxf5 {[%clk 0:02:56.9]}
7. c3 {[%clk 0:02:43.6]} 7... h5 {[%clk 0:02:55.4]} 8. Bd3 {[%clk 0:02:43.8]}
8... g6 {[%clk 0:02:55.1]} 9. Nd2 {[%clk 0:02:34.6]} 9... Bh6 {[%clk 0:02:54.6]}
10. Nf3 {[%clk 0:02:33.2]} 10... Bxc1 {[%clk 0:02:54.2]} 11. Qxc1 {[%clk
0:02:34.1]} 11... Nd7 {[%clk 0:02:51.9]} 12. Bxf5 {[%clk 0:02:33.2]} 12... exf5
{[%clk 0:02:50.3]} 13. Qe3 {[%clk 0:02:30.9]} 13... Nf8 {[%clk 0:02:50]} 14. Ng5
{[%clk 0:02:26]} 14... Ne6 {[%clk 0:02:49.6]} 15. Nxe6 {[%clk 0:02:21.9]} 15...
fxe6 {[%clk 0:02:50.5]} 16. f4 {[%clk 0:02:15.6]} 16... h4 {[%clk 0:02:44.7]}
17. O-O-O {[%clk 0:02:14.9]} 17... Qe7 {[%clk 0:02:43.9]} 18. g4 {[%clk
0:02:12.6]} 18... O-O-O {[%clk 0:02:08.8]} 19. Rhg1 {[%clk 0:02:08.6]} 19...
Rdf8 {[%clk 0:01:58.8]} 20. gxf5 {[%clk 0:02:06.2]} 20... gxf5 {[%clk
0:01:56.5]} 21. Rg5 {[%clk 0:02:05.1]} 21... Rfg8 {[%clk 0:01:48.7]} 22. Rdg1
{[%clk 0:02:05]} 22... Rxg5 {[%clk 0:01:49.2]} 23. Rxg5 {[%clk 0:02:05.9]} 23...
a5 {[%clk 0:01:47.1]} 24. Qg1 {[%clk 0:02:03.9]} 24... Kb8 {[%clk 0:01:43.7]}
25. a4 {[%clk 0:01:56.3]} 25... Ka7 {[%clk 0:01:42.5]} 26. Rg7 {[%clk
0:01:52.2]} 26... Qe8 {[%clk 0:01:38.8]} 27. Qg5 {[%clk 0:01:47.8]} 27... h3
{[%clk 0:01:36.3]} 28. Rg6 {[%clk 0:01:35.1]} 28... Rh4 {[%clk 0:01:27.7]} 29.
Rg8 {[%clk 0:01:26.8]} 29... Qh5 {[%clk 0:01:23]} 30. Qd8 {[%clk 0:01:21]} 30...
Ka6 {[%clk 0:01:06.3]} 31. Qa8+ {[%clk 0:01:06]} 31... Kb6 {[%clk 0:01:06.1]}
32. Qd8+ {[%clk 0:01:04.6]} 32... Ka6 {[%clk 0:01:01]} 33. b4 {[%clk 0:00:48.3]}
33... axb4 {[%clk 0:00:57.3]} 34. cxb4 {[%clk 0:00:48.1]} 1-0